bitfinex-derivatives/quotes_BTCF0:USTF0_20260111
["timestamp","ask_amount","ask_price","bid_price","bid_amount"]
[1768106045819,0.09372,90817.0,90804.0,0.01352607]
[1768106046113,0.02467112,90816.0,90804.0,0.01352607]
[1768106046308,0.02467112,90815.0,90805.0,0.011025]
[1768106046506,0.09372,90818.0,90805.0,0.011025]
[1768106046711,0.02467114,90817.0,90805.0,0.011025]
[1768106046921,0.02467114,90816.0,90805.0,0.011025]
[1768106047213,0.02467114,90815.0,90804.0,0.01352607]
[1768106047413,0.09372,90818.0,90804.0,0.01352607]
[1768106047604,0.02467123,90817.0,90804.0,0.01352607]
[1768106047805,0.02467123,90816.0,90804.0,0.01352607]
[1768106048006,0.02467123,90815.0,90804.0,0.01352607]
[1768106048206,0.09372,90818.0,90804.0,0.01352607]
[1768106048504,0.02467134,90817.0,90804.0,0.01352607]
[1768106048706,0.02467134,90816.0,90804.0,0.01352607]
[1768106048905,0.02467134,90815.0,90804.0,0.01352607]
[1768106049113,0.09372,90818.0,90804.0,0.01352607]
[1768106049313,0.02467147,90817.0,90804.0,0.01352607]
[1768106049614,0.02467147,90816.0,90804.0,0.01352607]
[1768106049819,0.02467147,90815.0,90804.0,0.01352607]
[1768106050113,0.09372,90818.0,90804.0,0.01352607]
[1768106050314,0.02467159,90817.0,90804.0,0.01352607]
[1768106050516,0.02467159,90816.0,90804.0,0.01352607]
[1768106050714,0.02467159,90815.0,90804.0,0.01352607]
[1768106050914,0.09372,90818.0,90804.0,0.01352607]
[1768106051116,0.0246716,90817.0,90804.0,0.01352607]
[1768106051307,0.02467173,90816.0,90804.0,0.01352607]
[1768106051507,0.02467173,90815.0,90804.0,0.01352607]
[1768106051709,0.09372,90818.0,90805.0,0.01352607]
[1768106052006,0.02467173,90817.0,90805.0,0.01352607]
[1768106052205,0.02467173,90816.0,90805.0,0.01352607]
[1768106052410,0.02467173,90815.0,90805.0,0.01352607]
[1768106052609,0.011024,90817.0,90805.0,0.01352607]
[1768106052810,0.02467187,90816.0,90805.0,0.01352607]
[1768106053022,0.02467187,90815.0,90805.0,0.01352607]
[1768106053220,0.02467187,90814.0,90805.0,0.01352607]
[1768106053516,0.011024,90817.0,90805.0,0.01352607]
[1768106053719,0.02470834,90816.0,90805.0,0.01352607]
[1768106053914,0.02470834,90815.0,90805.0,0.01352607]
[1768106054114,0.02470834,90814.0,90805.0,0.01352607]
[1768106054319,0.011024,90817.0,90805.0,0.01352607]
[1768106054517,0.02470826,90816.0,90805.0,0.01352607]
[1768106054717,0.02470826,90815.0,90805.0,0.01352607]
[1768106054919,0.02470826,90814.0,90805.0,0.01352607]
[1768106055118,0.011024,90817.0,90805.0,0.01352607]
[1768106055323,0.02470837,90816.0,90805.0,0.01352607]
[1768106055621,0.02470837,90815.0,90805.0,0.01352607]
[1768106055921,0.02470837,90814.0,90805.0,0.01352607]
[1768106056214,0.011024,90817.0,90805.0,0.01352607]
[1768106056418,0.02470812,90816.0,90805.0,0.01352607]
[1768106056621,0.02470812,90815.0,90805.0,0.01352607]
[1768106056810,0.011024,90817.0,90805.0,0.01352607]
[1768106057009,0.02470812,90816.0,90805.0,0.01352607]
[1768106057210,0.02470812,90815.0,90805.0,0.01352607]
[1768106057422,0.011024,90817.0,90805.0,0.01352607]
[1768106057612,0.02470808,90816.0,90805.0,0.01352607]
[1768106057814,0.02470808,90815.0,90805.0,0.01352607]
[1768106058014,0.011024,90817.0,90805.0,0.01352607]
[1768106058323,0.02470808,90816.0,90805.0,0.01352607]
[1768106058524,0.02470808,90815.0,90805.0,0.01352607]
[1768106058721,0.011024,90817.0,90805.0,0.01352607]
[1768106059026,0.02470805,90816.0,90805.0,0.01352607]
[1768106059219,0.02470805,90815.0,90805.0,0.01352607]
[1768106059524,0.09372,90818.0,90805.0,0.01352607]
[1768106059825,0.02470801,90817.0,90805.0,0.01352607]
[1768106060029,0.02470801,90816.0,90805.0,0.01352607]
[1768106060322,0.02470801,90815.0,90805.0,0.01352607]
[1768106060512,0.011024,90817.0,90805.0,0.01352607]
[1768106060713,0.02470795,90816.0,90805.0,0.01352607]
[1768106061011,0.02470795,90815.0,90805.0,0.01352607]
[1768106061211,0.011024,90817.0,90805.0,0.01352607]
[1768106061411,0.02470772,90816.0,90805.0,0.01352607]
[1768106061611,0.02470772,90815.0,90805.0,0.01352607]
[1768106061824,0.011024,90817.0,90805.0,0.01352607]
[1768106062025,0.02470772,90816.0,90805.0,0.01352607]
[1768106062224,0.02470772,90815.0,90805.0,0.01352607]
[1768106062425,0.011024,90817.0,90805.0,0.01352607]
[1768106062614,0.02470773,90816.0,90805.0,0.01352607]
[1768106062814,0.02470773,90815.0,90805.0,0.01352607]
[1768106063113,0.011024,90817.0,90805.0,0.01352607]
[1768106063313,0.02470779,90816.0,90805.0,0.01352607]
[1768106063528,0.02470779,90815.0,90805.0,0.01352607]
[1768106063722,0.011024,90817.0,90801.0,0.00924139]
[1768106063924,0.02470779,90816.0,90801.0,0.00924139]
[1768106064230,0.02470779,90815.0,90801.0,0.00924139]
[1768106064520,0.011024,90817.0,90801.0,0.00924139]
[1768106064720,0.02470791,90816.0,90801.0,0.00924139]
[1768106064923,0.02470791,90815.0,90802.0,0.011026]
[1768106065128,0.011024,90817.0,90802.0,0.011026]
[1768106065327,0.02470813,90816.0,90802.0,0.011026]
[1768106065518,0.02470813,90815.0,90802.0,0.011026]
[1768106065718,0.011024,90817.0,90802.0,0.011026]
[1768106066018,0.02470813,90816.0,90802.0,0.011026]
[1768106066218,0.02470813,90815.0,90802.0,0.011026]
[1768106066420,0.011024,90817.0,90802.0,0.011026]
[1768106066617,0.02470843,90816.0,90802.0,0.011026]
[1768106066816,0.02470843,90815.0,90802.0,0.011026]
[1768106067115,0.011024,90817.0,90802.0,0.011026]
[1768106067315,0.02470882,90816.0,90802.0,0.011026]
[1768106067615,0.02470882,90815.0,90802.0,0.011026]
[1768106067816,0.011024,90817.0,90802.0,0.011026]
[1768106068116,0.02470882,90816.0,90802.0,0.011026]
[1768106068314,0.02470882,90815.0,90802.0,0.011026]
[1768106068515,0.011024,90817.0,90802.0,0.011026]
[1768106068718,0.02470933,90816.0,90802.0,0.011026]
[1768106068918,0.02470933,90815.0,90802.0,0.011026]
[1768106069129,0.011024,90817.0,90802.0,0.011026]
[1768106069327,0.02470976,90816.0,90802.0,0.011026]
[1768106069531,0.011024,90817.0,90802.0,0.011026]
[1768106069726,0.02470976,90816.0,90802.0,0.011026]
[1768106069926,0.011024,90817.0,90802.0,0.011026]
[1768106070127,0.02470976,90816.0,90802.0,0.011026]
[1768106070316,0.09372,90818.0,90802.0,0.011026]
[1768106070514,0.02470984,90817.0,90802.0,0.011026]
[1768106070719,0.02470984,90816.0,90802.0,0.011026]
[1768106070920,0.09372,90818.0,90802.0,0.011026]
[1768106071121,0.02470984,90817.0,90802.0,0.011026]
[1768106071325,0.02470984,90816.0,90802.0,0.011026]
[1768106071525,0.09372,90818.0,90802.0,0.011026]
[1768106071738,0.02471061,90817.0,90802.0,0.011026]
[1768106071931,0.02471061,90816.0,90802.0,0.011026]
[1768106072132,0.00926628,90812.0,90796.0,0.011026]
[1768106072327,0.00926628,90809.0,90792.0,0.011027]
[1768106073131,0.01324082,90810.0,90792.0,0.011027]
[1768106073326,0.01324082,90810.0,90795.0,0.011027]
[1768106073527,0.00926628,90812.0,90795.0,0.011027]
[1768106074629,0.00904596,90810.0,90795.0,0.011027]
[1768106075132,0.00904596,90810.0,90791.0,0.02455307]
[1768106075536,0.02007096,90809.0,90791.0,0.01352607]
[1768106076937,0.011025,90806.0,90791.0,0.01352607]
[1768106077139,0.00904596,90803.0,90787.0,0.011027]
[1768106077338,0.00904596,90802.0,90788.0,0.09372]
[1768106077826,0.011025,90806.0,90788.0,0.09372]
[1768106079045,0.011025,90806.0,90789.0,0.011027]
[1768106081047,0.011025,90806.0,90789.0,0.02063468]
[1768106081250,0.00904596,90808.0,90789.0,0.02063468]
[1768106081739,0.00904596,90808.0,90791.0,0.011027]
[1768106082244,0.00904596,90808.0,90793.0,0.011027]
[1768106083042,0.02479863,90807.0,90793.0,0.011027]
[1768106083242,0.00904596,90808.0,90793.0,0.011027]
[1768106083444,0.01356786,90809.0,90793.0,0.011027]
[1768106083743,0.02479798,90808.0,90793.0,0.011027]
[1768106083942,0.01356786,90809.0,90793.0,0.011027]
[1768106084145,0.02479798,90808.0,90793.0,0.011027]
[1768106084344,0.01356786,90809.0,90793.0,0.011027]
[1768106084643,0.02479743,90808.0,90793.0,0.011027]
[1768106084844,0.01356786,90809.0,90793.0,0.011027]
[1768106085037,0.02479743,90808.0,90793.0,0.011027]
[1768106085240,0.01356786,90809.0,90793.0,0.011027]
[1768106085541,0.02479694,90808.0,90793.0,0.011027]
[1768106085743,0.15166483,90810.0,90794.0,0.00960768]
[1768106086043,0.02479693,90809.0,90795.0,0.00960768]
[1768106086346,0.15166483,90810.0,90795.0,0.00960768]
[1768106086540,0.02479589,90809.0,90795.0,0.00960768]
[1768106086748,0.15166483,90810.0,90795.0,0.00960768]
[1768106086940,0.02479589,90809.0,90795.0,0.00960768]
[1768106087135,0.15166483,90810.0,90799.0,0.011026]
[1768106087342,0.02479595,90809.0,90799.0,0.011026]
[1768106087540,0.15166483,90810.0,90799.0,0.011026]
[1768106087846,0.02479595,90809.0,90799.0,0.011026]
[1768106088037,0.15166483,90810.0,90799.0,0.011026]
[1768106088345,0.02479594,90809.0,90799.0,0.011026]
[1768106088543,0.15166483,90810.0,90799.0,0.011026]
[1768106088734,0.02479602,90809.0,90799.0,0.011026]
[1768106088936,0.15166483,90810.0,90799.0,0.011026]
[1768106094847,0.09372,90816.0,90799.0,0.011026]
[1768106095048,0.15166483,90810.0,90799.0,0.011026]
[1768106096048,0.0208531,90815.0,90799.0,0.011026]
[1768106096248,0.15166483,90810.0,90799.0,0.011026]
[1768106099645,0.0208531,90815.0,90799.0,0.011026]
[1768106099845,0.02479879,90814.0,90799.0,0.011026]
[1768106100047,0.02479879,90813.0,90799.0,0.011026]
[1768106100244,0.0098291,90815.0,90799.0,0.011026]
[1768106100450,0.15166483,90810.0,90799.0,0.011026]
[1768106100847,0.15166483,90810.0,90801.0,0.011026]
[1768106101357,0.15166483,90810.0,90796.0,0.00934363]
[1768106102156,0.15166483,90810.0,90801.0,0.011026]
[1768106102551,0.0098291,90815.0,90803.0,0.011026]
[1768106102856,0.0247999,90814.0,90803.0,0.011026]
[1768106103052,0.0247999,90813.0,90803.0,0.011026]
[1768106103349,0.0098291,90815.0,90803.0,0.011026]
[1768106103651,0.02480033,90814.0,90803.0,0.011026]
[1768106103861,0.02480033,90813.0,90803.0,0.011026]
[1768106104047,0.0098291,90815.0,90803.0,0.011026]
[1768106104242,0.02480032,90814.0,90803.0,0.011026]
[1768106104451,0.02480032,90813.0,90803.0,0.011026]
[1768106104756,0.02431664,90819.0,90803.0,0.011026]
[1768106104949,0.00994688,90817.0,90803.0,0.011026]
[1768106105151,0.02480083,90816.0,90803.0,0.011026]
[1768106105351,0.02480083,90815.0,90803.0,0.011026]
[1768106105551,0.02480083,90814.0,90803.0,0.011026]
[1768106105753,0.02480083,90813.0,90803.0,0.011026]
[1768106105951,0.00994688,90816.0,90803.0,0.011026]
[1768106106249,0.02480133,90815.0,90803.0,0.011026]
[1768106106448,0.02480133,90814.0,90803.0,0.011026]
[1768106106648,0.02480133,90813.0,90803.0,0.011026]
[1768106106855,0.00994688,90816.0,90803.0,0.011026]
[1768106107159,0.02480115,90815.0,90803.0,0.011026]
[1768106107359,0.02480115,90814.0,90803.0,0.011026]
[1768106107559,0.02480115,90813.0,90803.0,0.011026]
[1768106107861,0.00994688,90816.0,90803.0,0.011026]
[1768106108049,0.02480097,90815.0,90803.0,0.011026]
[1768106108251,0.02480097,90814.0,90803.0,0.011026]
[1768106108450,0.02480097,90813.0,90803.0,0.011026]
[1768106108650,0.00994688,90816.0,90803.0,0.011026]
[1768106108852,0.02480107,90815.0,90803.0,0.011026]
[1768106109052,0.02480107,90814.0,90803.0,0.011026]
[1768106109260,7e-08,90813.0,90809.0,0.011025]
[1768106109456,0.15166483,90820.0,90806.0,0.011025]
[1768106109654,0.15166483,90820.0,90804.0,0.09372]
[1768106110054,0.16161171,90820.0,90804.0,0.09372]
[1768106110456,0.00994688,90819.0,90804.0,0.09372]
[1768106112164,0.011024,90818.0,90804.0,0.09372]
[1768106113265,0.00994688,90819.0,90804.0,0.104745]
[1768106118268,0.00994688,90819.0,90806.0,0.011025]
[1768106121270,0.02461256,90818.0,90806.0,0.011025]
[1768106121470,0.02461256,90817.0,90806.0,0.011025]
[1768106121672,0.02461256,90816.0,90806.0,0.011025]
[1768106121867,0.00994688,90819.0,90806.0,0.011025]
[1768106122166,0.02461257,90818.0,90806.0,0.011025]
[1768106122362,0.02461257,90817.0,90806.0,0.011025]
[1768106122562,0.02461257,90816.0,90806.0,0.011025]
[1768106122764,0.00994688,90819.0,90806.0,0.011025]
[1768106122964,0.02461244,90818.0,90806.0,0.011025]
[1768106123177,0.02461244,90817.0,90806.0,0.011025]
[1768106123374,0.02461244,90816.0,90806.0,0.011025]
[1768106123574,0.00994688,90819.0,90806.0,0.011025]
[1768106123776,0.02461243,90818.0,90806.0,0.011025]
[1768106123971,0.02461243,90817.0,90808.0,0.011025]
[1768106124277,0.02461243,90816.0,90808.0,0.011025]
[1768106124460,0.00994688,90823.0,90808.0,0.011025]
[1768106124775,0.02461251,90822.0,90808.0,0.011025]
[1768106124968,0.02461251,90821.0,90808.0,0.011025]
[1768106125167,0.02461251,90820.0,90808.0,0.011025]
[1768106125368,0.02461251,90819.0,90808.0,0.011025]
[1768106125566,0.02461251,90818.0,90810.0,0.011025]
[1768106125768,5.1e-07,90817.0,90810.0,0.011025]
[1768106126075,0.01366804,90824.0,90810.0,0.011025]
[1768106126263,0.02361492,90824.0,90810.0,0.16268983]
[1768106127870,0.02361492,90824.0,90810.0,0.011025]
[1768106130482,0.02361492,90824.0,90812.0,0.011024]
[1768106132288,0.02361492,90824.0,90810.0,0.15166483]
[1768106132683,0.02361492,90824.0,90811.0,0.011025]
[1768106133070,0.00550512,90825.0,90811.0,0.011025]
[1768106137494,0.00550512,90825.0,90813.0,0.011024]
[1768106137986,0.02451646,90824.0,90813.0,0.011024]
[1768106138189,0.02451646,90823.0,90813.0,0.011024]
[1768106138379,0.02451646,90822.0,90813.0,0.011024]
[1768106138581,0.02451646,90821.0,90813.0,0.011024]
[1768106138786,0.00550512,90825.0,90813.0,0.011024]
[1768106138787,0.02451646,90820.0,90813.0,0.011024]
[1768106138987,0.00550512,90825.0,90813.0,0.011024]
[1768106141089,0.00550512,90825.0,90810.0,0.15166483]
[1768106141387,0.00550512,90825.0,90811.0,0.011025]
[1768106141799,0.01652812,90825.0,90810.0,0.15166483]
[1768106142500,0.00550512,90825.0,90809.0,0.011025]
[1768106142801,0.00550512,90825.0,90811.0,0.011025]
[1768106149603,0.00550512,90825.0,90813.0,0.011024]
[1768106151007,0.02410627,90824.0,90813.0,0.011024]
[1768106151200,0.02410627,90823.0,90813.0,0.011024]
[1768106151506,0.01410627,90822.0,90815.0,0.011024]
[1768106151705,0.00550512,90825.0,90818.0,0.011024]
[1768106153007,0.00242217,90828.0,90818.0,0.011024]
[1768106153198,0.00242217,90828.0,90815.0,0.011024]
[1768106153998,0.011022,90832.0,90817.0,0.02097232]
[1768106154699,0.1277708,90835.0,90817.0,0.02097232]
[1768106155807,0.011022,90833.0,90817.0,0.02097232]
[1768106156203,0.1167488,90835.0,90819.0,0.011024]
[1768106156508,0.011022,90834.0,90816.0,0.01403719]
[1768106157310,0.011022,90834.0,90818.0,0.011024]
[1768106158406,0.1167488,90835.0,90820.0,0.011023]
[1768106158906,0.011022,90834.0,90817.0,0.011024]
[1768106159810,0.011022,90832.0,90817.0,0.011024]
[1768106161905,0.1277708,90835.0,90817.0,0.011024]
[1768106162308,0.011022,90832.0,90817.0,0.011024]
[1768106162907,0.1277708,90835.0,90817.0,0.011024]
[1768106163406,0.0240386,90834.0,90817.0,0.011024]
[1768106163607,0.0240386,90833.0,90817.0,0.011024]
[1768106163815,0.0240386,90832.0,90817.0,0.011024]
[1768106164110,0.0240386,90831.0,90817.0,0.011024]
[1768106164316,0.0240386,90830.0,90817.0,0.011024]
[1768106164516,0.0240386,90829.0,90817.0,0.011024]
[1768106164717,0.011022,90833.0,90817.0,0.011024]
[1768106164906,0.02403757,90832.0,90817.0,0.011024]
[1768106165108,0.02403757,90831.0,90817.0,0.011024]
[1768106165312,0.02403757,90830.0,90817.0,0.011024]
[1768106165612,0.02403757,90829.0,90817.0,0.011024]
[1768106165917,0.011022,90833.0,90817.0,0.011024]
[1768106166113,0.02403675,90832.0,90817.0,0.011024]
[1768106166314,0.02403675,90831.0,90817.0,0.011024]
[1768106166506,0.02403675,90830.0,90817.0,0.011024]
[1768106166707,0.02403675,90829.0,90817.0,0.011024]
[1768106166908,0.011022,90833.0,90817.0,0.011024]
[1768106167108,0.02403599,90832.0,90817.0,0.011024]
[1768106167311,0.02403599,90831.0,90817.0,0.011024]
[1768106167610,0.02403599,90830.0,90817.0,0.011024]
[1768106167809,0.011022,90833.0,90817.0,0.011024]
[1768106168010,0.02403532,90832.0,90817.0,0.011024]
[1768106168309,0.02403532,90831.0,90817.0,0.011024]
[1768106168509,0.02403532,90830.0,90817.0,0.011024]
[1768106168722,0.011022,90833.0,90817.0,0.011024]
[1768106169013,0.02403483,90832.0,90817.0,0.011024]
[1768106169218,0.02403483,90831.0,90817.0,0.011024]
[1768106169412,0.02403483,90830.0,90817.0,0.011024]
[1768106169610,0.02403483,90829.0,90817.0,0.011024]
[1768106169812,0.02403483,90828.0,90817.0,0.011024]
[1768106170110,0.011022,90833.0,90817.0,0.011024]
[1768106170309,0.02403456,90832.0,90817.0,0.011024]
[1768106170518,0.02403456,90831.0,90817.0,0.011024]
[1768106170720,0.02403456,90830.0,90817.0,0.011024]
[1768106170920,0.02403456,90829.0,90817.0,0.011024]
[1768106171109,0.02403456,90828.0,90817.0,0.011024]
[1768106171311,0.011022,90833.0,90817.0,0.011024]
[1768106171511,0.02403439,90832.0,90820.0,0.01067933]
[1768106171720,0.02403439,90831.0,90820.0,0.01067933]
[1768106171919,0.02403439,90830.0,90820.0,0.01067933]
[1768106172120,0.02403439,90829.0,90819.0,0.02568793]
[1768106172313,0.02403439,90828.0,90819.0,0.02568793]
[1768106172512,0.01166528,90837.0,90819.0,0.02568793]
[1768106172713,0.03569967,90836.0,90819.0,0.02568793]
[1768106172918,0.02403439,90835.0,90819.0,0.02568793]
[1768106173221,0.02403439,90834.0,90819.0,0.011024]
[1768106173411,0.02403439,90833.0,90819.0,0.011024]
[1768106173611,0.02403439,90832.0,90819.0,0.011024]
[1768106173911,0.02403439,90831.0,90819.0,0.011024]
[1768106174112,0.02403439,90830.0,90819.0,0.011024]
[1768106174307,0.011022,90835.0,90819.0,0.011024]
[1768106174308,0.02403439,90829.0,90819.0,0.011024]
[1768106174512,0.02403439,90828.0,90819.0,0.011024]
[1768106174721,0.011022,90835.0,90819.0,0.011024]
[1768106174924,0.02385562,90834.0,90819.0,0.011024]
[1768106175121,0.011022,90832.0,90816.0,0.01067933]
[1768106175323,0.011022,90830.0,90815.0,0.011024]
[1768106175628,0.02385562,90829.0,90815.0,0.011024]
[1768106179127,0.011022,90830.0,90815.0,0.011024]
[1768106179517,0.011022,90830.0,90814.0,0.01466393]
[1768106180128,0.011022,90830.0,90814.0,0.02568793]
[1768106180929,0.011022,90830.0,90814.0,0.01466393]
[1768106185125,0.02387705,90829.0,90814.0,0.01466393]
[1768106185315,0.011022,90830.0,90814.0,0.01466393]
[1768106185517,0.0238771,90829.0,90814.0,0.01466393]
[1768106185720,0.011022,90830.0,90814.0,0.01466393]
[1768106186018,0.0238771,90829.0,90814.0,0.01466393]
[1768106186215,0.011022,90830.0,90814.0,0.01466393]
[1768106186530,0.02387844,90829.0,90814.0,0.01466393]
[1768106186731,0.011022,90830.0,90814.0,0.01466393]
[1768106186930,0.02387844,90829.0,90814.0,0.01466393]
[1768106187129,0.011022,90830.0,90815.0,0.011024]
[1768106187320,0.02387912,90829.0,90815.0,0.011024]
[1768106187522,0.011022,90830.0,90815.0,0.011024]
[1768106187726,0.02387915,90829.0,90815.0,0.011024]
[1768106187925,0.011022,90830.0,90815.0,0.011024]
[1768106188125,0.02387915,90829.0,90815.0,0.011024]
[1768106188323,0.09372,90842.0,90820.0,0.02534326]
[1768106188635,0.01652491,90845.0,90829.0,0.01067933]
[1768106188822,0.00550391,90845.0,90829.0,0.01067933]
[1768106189430,0.00550391,90845.0,90828.0,0.01466393]
[1768106189640,0.01716919,90845.0,90828.0,0.01466393]
[1768106189821,0.01716919,90845.0,90826.0,0.01067933]
[1768106190131,0.01166528,90844.0,90826.0,0.01067933]
[1768106191128,0.01166528,90844.0,90825.0,0.09372]
[1768106192129,0.02268628,90844.0,90825.0,0.09372]
[1768106192822,0.02268628,90842.0,90825.0,0.09372]
[1768106193020,0.01166528,90842.0,90825.0,0.09372]
[1768106194434,0.02252828,90845.0,90825.0,0.09372]
[1768106194739,0.011021,90843.0,90825.0,0.09372]
[1768106196043,0.011021,90843.0,90825.0,0.104743]
[1768106196235,0.02804537,90844.0,90825.0,0.104743]
[1768106196435,0.01702437,90844.0,90825.0,0.104743]
[1768106197431,0.01702437,90844.0,90825.0,0.12244759]
[1768106199244,0.01702437,90844.0,90827.0,0.011023]
[1768106200447,0.011021,90843.0,90825.0,0.11142459]
[1768106200648,0.02372983,90842.0,90825.0,0.11142459]
[1768106200947,0.011021,90843.0,90825.0,0.11142459]
[1768106201245,0.02372983,90842.0,90825.0,0.11142459]
[1768106201438,0.011021,90843.0,90825.0,0.11142459]
[1768106201637,0.02372926,90842.0,90825.0,0.11142459]
[1768106201838,0.01702437,90844.0,90826.0,0.011023]
[1768106202049,0.02372926,90843.0,90826.0,0.02872759]
[1768106202249,0.02372926,90842.0,90826.0,0.02872759]
[1768106202451,0.01702437,90844.0,90826.0,0.02872759]
[1768106202650,0.02372863,90843.0,90826.0,0.02872759]
[1768106202851,0.01702437,90844.0,90826.0,0.02872759]
[1768106203045,0.02372863,90843.0,90826.0,0.02872759]
[1768106203248,0.01702437,90844.0,90826.0,0.02872759]
[1768106203448,0.02366402,90843.0,90826.0,0.02872759]
[1768106203748,0.01702437,90844.0,90826.0,0.02872759]
[1768106203946,0.02366402,90843.0,90826.0,0.02872759]
[1768106204147,0.01702437,90844.0,90826.0,0.02872759]
[1768106204348,0.02366402,90843.0,90826.0,0.02872759]
[1768106204547,0.15154666,90840.0,90826.0,0.02872759]
[1768106204742,0.01702437,90835.0,90822.0,0.011023]
[1768106205053,0.15154666,90833.0,90822.0,0.011023]
[1768106211849,0.15154666,90832.0,90822.0,0.011023]
[1768106212758,0.15154666,90832.0,90824.0,0.011023]
[1768106214658,0.15154666,90832.0,90821.0,0.011023]
[1768106218461,0.01702437,90835.0,90821.0,0.011023]
[1768106220354,0.0205316,90834.0,90821.0,0.011023]
[1768106222063,0.0205316,90834.0,90820.0,0.09368]
[1768106222758,0.15154666,90830.0,90820.0,0.09368]
[1768106223565,0.15154666,90830.0,90820.0,0.104703]
[1768106223967,0.0205316,90834.0,90820.0,0.104703]
[1768106224156,0.0205316,90834.0,90822.0,0.011023]
[1768106224356,0.15154666,90832.0,90822.0,0.011023]
[1768106224558,0.0205316,90834.0,90822.0,0.011023]
[1768106227470,0.01538035,90835.0,90822.0,0.011023]
[1768106227661,0.02203493,90837.0,90822.0,0.011023]
[1768106227861,0.02370774,90836.0,90822.0,0.011023]
[1768106228062,0.02370774,90835.0,90822.0,0.011023]
[1768106228262,0.02203493,90837.0,90822.0,0.011023]
[1768106228560,0.02370769,90836.0,90822.0,0.011023]
[1768106228761,0.02370769,90835.0,90822.0,0.011023]
[1768106228963,0.02203493,90837.0,90824.0,0.011023]
[1768106246887,0.02203493,90837.0,90811.0,0.49624598]
[1768106246888,0.02203493,90833.0,90812.0,0.03714366]
[1768106247090,0.15154666,90830.0,90815.0,0.011024]
[1768106247492,0.15154666,90830.0,90819.0,0.011024]
[1768106248889,0.011022,90829.0,90812.0,0.01495781]
[1768106249089,0.15154666,90823.0,90813.0,0.09368]
[1768106250092,0.02203493,90826.0,90813.0,0.09368]
[1768106256196,0.011023,90827.0,90813.0,0.09368]
[1768106261413,0.0352735,90827.0,90813.0,0.09368]
[1768106262414,0.15154666,90823.0,90813.0,0.09368]
[1768106264517,0.011023,90827.0,90813.0,0.09368]
[1768106279427,0.011023,90827.0,90813.0,0.11923253]
[1768106285332,0.011023,90827.0,90813.0,0.1345244]
[1768106286331,0.011023,90827.0,90814.0,0.02703995]
[1768106318750,0.011022,90830.0,90814.0,0.02703995]
[1768106318949,0.02372654,90829.0,90814.0,0.02703995]
[1768106319146,0.011022,90830.0,90814.0,0.02703995]
[1768106324553,0.15161271,90824.0,90814.0,0.02703995]
[1768106328461,0.011022,90830.0,90814.0,0.02703995]
[1768106328648,0.15161271,90824.0,90814.0,0.02703995]
[1768106337081,0.15161271,90824.0,90813.0,0.01529187]
[1768106337781,0.15161271,90824.0,90814.0,0.011024]
[1768106338178,0.15161271,90824.0,90813.0,0.01529187]
[1768106340382,0.011023,90828.0,90813.0,0.01529187]
[1768106340689,0.15161271,90823.0,90813.0,0.01529187]
[1768106340973,0.03025767,90822.0,90811.0,0.011024]
[1768106341173,0.03025767,90821.0,90808.0,0.09368]
[1768106341580,0.15161271,90818.0,90808.0,0.09368]
[1768106341773,0.03025767,90817.0,90799.0,1e-08]
[1768106341968,0.15161271,90810.0,90797.0,0.14916179]
[1768106342173,0.15161271,90810.0,90797.0,0.13813579]
[1768106342373,0.15161271,90810.0,90797.0,0.13813578]
[1768106342572,0.15161271,90810.0,90797.0,0.10819886]
[1768106345180,0.03025767,90815.0,90797.0,0.10819886]
[1768106345976,0.04128167,90815.0,90797.0,0.10819886]
[1768106347475,0.04128167,90815.0,90798.0,0.01344897]
[1768106347674,0.03025767,90815.0,90798.0,0.01344897]
[1768106348282,0.03025767,90815.0,90798.0,0.00242297]
[1768106348486,0.03025767,90815.0,90802.0,0.011026]
[1768106350592,0.03025767,90815.0,90804.0,0.011025]
[1768106353183,0.03025767,90815.0,90798.0,0.00242297]
[1768106353391,0.03025767,90815.0,90802.0,0.011026]
[1768106355789,0.03025767,90815.0,90799.0,0.011026]
[1768106357592,0.03025767,90815.0,90801.0,0.011026]
[1768106358691,0.03025767,90815.0,90798.0,0.01344897]
[1768106361789,0.03107301,90811.0,90798.0,0.01344897]
[1768106362092,0.18268572,90810.0,90798.0,0.01344897]
[1768106362283,0.18268572,90810.0,90795.0,0.011026]
[1768106362284,0.04537468,90808.0,90795.0,0.011026]
[1768106362587,0.03107301,90807.0,90795.0,0.011026]
[1768106363886,0.03107301,90806.0,90795.0,0.011026]
[1768106364079,0.03107301,90805.0,90795.0,0.011026]
[1768106367192,0.03107301,90805.0,90797.0,0.011026]
[1768106370994,0.03107301,90805.0,90791.0,0.17298156]
[1768106371196,0.03107301,90805.0,90796.0,0.011026]
[1768106372191,0.01430167,90806.0,90796.0,0.011026]
[1768106374697,0.03107301,90809.0,90799.0,0.011026]
[1768106375800,0.03107301,90809.0,90798.0,0.011026]
[1768106378798,0.15161271,90810.0,90798.0,0.011026]
[1768106379598,0.02965925,90809.0,90798.0,0.011026]
[1768106381503,0.02965925,90808.0,90798.0,0.011026]
[1768106381904,0.02965925,90808.0,90795.0,0.011027]
[1768106383910,0.02965925,90808.0,90797.0,0.011026]
[1768106401631,0.02965925,90808.0,90799.0,0.011026]
[1768106408934,0.02965925,90808.0,90796.0,0.011026]
[1768106417639,0.02965925,90808.0,90798.0,0.011026]
[1768106421047,0.02965925,90808.0,90795.0,0.011026]
[1768106426948,0.02965925,90808.0,90797.0,0.011026]
[1768106433554,0.02965925,90808.0,90799.0,0.011026]
[1768106445860,0.02965925,90808.0,90796.0,0.011026]
[1768106456178,0.02965925,90808.0,90798.0,0.011026]
[1768106460985,0.02965925,90808.0,90797.0,0.011026]
[1768106462283,0.02965925,90808.0,90791.0,0.17298156]
[1768106462472,0.02965925,90808.0,90798.0,0.011026]
[1768106465992,0.02965925,90808.0,90791.0,0.17298156]
[1768106467185,0.02965925,90808.0,90796.0,0.011026]
[1768106467387,0.02965925,90808.0,90798.0,0.011026]
[1768106468787,0.03240236,90811.0,90792.0,0.03136158]
[1768106469194,0.03240236,90811.0,90800.0,0.011026]
[1768106470695,0.03240236,90826.0,90806.0,0.04685533]
[1768106470900,0.02545475,90824.0,90810.0,0.16266854]
[1768106471095,0.00242217,90828.0,90812.0,0.011024]
[1768106472788,0.00242217,90828.0,90814.0,0.011024]
[1768106477602,0.00242217,90828.0,90811.0,0.03136158]
[1768106477806,0.00242217,90828.0,90812.0,0.011024]
[1768106478699,0.00242217,90828.0,90811.0,0.04238658]
[1768106479095,0.00242217,90828.0,90812.0,0.011024]
[1768106490414,0.00242217,90828.0,90814.0,0.011024]